bitfinex/quotes_BTCUSD_20250422
["timestamp","ask_amount","ask_price","bid_price","bid_amount"]
[1745292630940,0.0004226,88076.0,88075.0,0.61237919]
[1745292631142,0.0004226,88076.0,88075.0,0.71257919]
[1745292631348,0.00046833,88076.0,88075.0,0.71257919]
[1745292633331,0.00046833,88076.0,88075.0,0.72104033]
[1745292634013,0.00046833,88076.0,88075.0,0.72204033]
[1745292635939,0.00046833,88076.0,88075.0,0.77074033]
[1745292642398,0.00046833,88076.0,88075.0,0.44966114]
[1745292642611,0.22754494,88076.0,88075.0,0.4412]
[1745292642816,0.22754494,88076.0,88075.0,0.1012]
[1745292643681,0.22754494,88076.0,88075.0,0.1002]
[1745292644485,0.01135421,88073.0,88070.0,0.0113546]
[1745292644694,0.01135421,88073.0,88070.0,0.34]
[1745292644975,0.23844097,88073.0,88070.0,0.34]
[1745292645553,0.2270895,88071.0,88070.0,0.34]
[1745292647323,0.23844097,88073.0,88070.0,0.34]
[1745292647905,0.22708872,88072.0,88070.0,0.34]
[1745292650878,0.0113555,88063.0,88062.0,0.00834868]
[1745292651003,0.01135512,88066.0,88065.0,0.34]
[1745292651200,0.23845752,88066.0,88065.0,0.34]
[1745292653557,0.01135512,88066.0,88065.0,0.34]
[1745292654715,0.01135524,88065.0,88062.0,0.01135563]
[1745292656395,0.01135537,88064.0,88061.0,0.44012]
[1745292656595,0.22712303,88058.0,88056.0,0.37424]
[1745292657042,0.22712303,88058.0,88057.0,0.34]
[1745292658074,0.22712303,88058.0,88050.0,0.14607417]
[1745292658075,0.23849401,88053.0,88051.0,0.34]
[1745292658976,0.01135692,88052.0,88049.0,0.34]
[1745292659484,0.23849728,88052.0,88049.0,0.34]
[1745292660258,0.23849728,88052.0,88048.0,0.34]
[1745292660850,0.001,88053.0,88050.0,0.01135718]
[1745292661049,0.001,88053.0,88052.0,0.2271385]
[1745292661792,0.01135615,88058.0,88053.0,0.34]
[1745292661793,0.22713024,88056.0,88053.0,0.34]
[1745292662693,0.23848664,88056.0,88053.0,0.34]
[1745292663320,0.23848664,88056.0,88051.0,0.34]
[1745292663321,0.23849,88054.0,88051.0,0.34]
[1745292663530,0.2271385,88052.0,88051.0,0.34]
[1745292664275,0.01135782,88045.0,88042.0,0.01135821]
[1745292664698,0.01135757,88047.0,88043.0,0.34]
[1745292665544,0.01140327,88047.0,88043.0,0.34]
[1745292665781,0.01140327,88047.0,88043.0,0.35135808]
[1745292667160,4.57e-05,88047.0,88045.0,0.34]
[1745292667399,4.57e-05,88047.0,88045.0,0.56715438]
[1745292678772,4.57e-05,88047.0,88045.0,0.34]
[1745292678900,4.57e-05,88047.0,88044.0,0.23851709]
[1745292678901,4.57e-05,88047.0,88046.0,0.56715398]
[1745292680293,4.57e-05,88047.0,88046.0,0.34]
[1745292683844,0.22716946,88040.0,88039.0,0.01313504]
[1745292684381,0.22716946,88040.0,88037.0,0.01332475]
[1745292684382,0.22717462,88038.0,88037.0,0.01332475]
[1745292688002,0.22717462,88038.0,88037.0,0.01432475]
[1745292691675,0.22717462,88038.0,88034.0,0.35135924]
[1745292691890,0.01135886,88037.0,88034.0,0.01135924]
[1745292693020,0.01135886,88037.0,88034.0,0.01235924]
[1745292693578,0.01135886,88037.0,88034.0,0.01135924]
[1745292693793,0.01135886,88037.0,88034.0,0.35235924]
[1745292694218,0.01135886,88037.0,88034.0,0.36557754]
[1745292694419,0.22717979,88036.0,88034.0,0.3542183]
[1745292695355,0.22717979,88036.0,88034.0,0.0142183]
[1745292695553,0.22717979,88036.0,88034.0,0.0132183]
[1745292695763,0.22717979,88036.0,88034.0,0.0122183]
[1745292695957,0.22717979,88036.0,88034.0,0.0132183]
[1745292696190,0.22717979,88036.0,88034.0,0.001]
[1745292697064,0.22717979,88036.0,88034.0,0.0134947]
[1745292700116,0.22717979,88036.0,88034.0,0.001]
[1745292700367,0.22717979,88036.0,88034.0,0.01319861]
[1745292700368,0.0481,88035.0,88034.0,0.01319861]
[1745292700753,0.0481,88035.0,88034.0,0.01219861]
[1745292700961,0.23854419,88034.0,88031.0,0.0013]
[1745292702344,0.22719011,88032.0,88031.0,0.0013]
[1745292702825,0.23856316,88027.0,88022.0,0.29088289]
[1745292703025,0.23856316,88027.0,88022.0,0.30336408]
[1745292703258,0.01136027,88026.0,88023.0,0.01136066]
[1745292705385,0.01136027,88026.0,88022.0,0.30336408]
[1745292705608,0.01136027,88026.0,88022.0,0.07615065]
[1745292705967,0.0113604,88025.0,88022.0,0.07615065]
[1745292706212,0.23856913,88025.0,88022.0,0.07615065]
[1745292706417,0.23856913,88025.0,88022.0,0.01248119]
[1745292706708,0.23856913,88025.0,88021.0,0.01136092]
[1745292707642,0.01136053,88024.0,88021.0,0.23857897]
[1745292708051,0.01136053,88024.0,88021.0,0.25108708]
[1745292708998,0.01136027,88026.0,88022.0,0.01136079]
[1745292709168,0.0113604,88025.0,88022.0,0.01136079]
[1745292712091,0.0113604,88025.0,88021.0,0.25108575]
[1745292712545,0.0113604,88025.0,88020.0,0.0008454]
[1745292712546,0.2272185,88021.0,88020.0,0.0008454]
[1745292712745,0.34097444,88021.0,88020.0,0.0008454]
[1745292713504,0.34097444,88021.0,88020.0,0.01295105]
[1745292714275,0.238574,88023.0,88020.0,0.01295105]
[1745292714490,0.01136027,88026.0,88020.0,0.01295105]
[1745292714706,0.23856357,88027.0,88020.0,0.01295105]
[1745292714919,0.001,88021.0,88020.0,0.3643121]
[1745292715129,0.001,88021.0,88020.0,0.49260889]
[1745292715363,0.01135963,88031.0,88026.0,0.01136027]
[1745292715600,0.01135924,88034.0,88029.0,0.34]
[1745292715852,0.01135821,88042.0,88035.0,0.1259798]
[1745292716065,0.01135795,88044.0,88040.0,0.01135847]
[1745292716694,0.01135834,88041.0,88037.0,0.01135886]
[1745292717065,0.01135847,88040.0,88035.0,0.01135911]
[1745292717273,0.0113586,88039.0,88036.0,0.01135898]
[1745292717480,0.01135847,88040.0,88036.0,0.01135898]
[1745292718037,0.22715793,88045.0,88041.0,0.01135834]
[1745292718038,0.01135782,88045.0,88041.0,0.01135834]
[1745292718279,0.001,88044.0,88041.0,0.35135834]
[1745292718477,0.01235795,88044.0,88041.0,0.35135834]
[1745292718698,0.01135795,88044.0,88041.0,0.34]
[1745292719878,0.01235795,88044.0,88041.0,0.34]
[1745292720329,0.01335795,88044.0,88041.0,0.34]
[1745292722632,0.2272185,88021.0,88020.0,0.01295105]
[1745292723074,0.01136066,88023.0,88020.0,0.01295105]
[1745292723274,0.01136066,88023.0,88014.0,0.000845]
[1745292723275,0.01136118,88019.0,88014.0,0.000845]
[1745292723677,0.01136144,88017.0,88014.0,0.000845]
[1745292723898,0.22723141,88016.0,88014.0,0.000845]
[1745292724525,0.22723141,88016.0,88014.0,0.01299451]
[1745292724727,0.22623141,88016.0,88014.0,0.01345226]
[1745292725545,0.22623141,88016.0,88014.0,0.01445226]
[1745292726069,0.22623141,88016.0,88014.0,0.01545226]
[1745292726264,0.22623141,88016.0,88014.0,0.01345226]
[1745292726698,0.22623141,88016.0,88014.0,0.01545226]
[1745292726881,0.22623141,88016.0,88014.0,0.01445226]
[1745292727284,0.22623141,88016.0,88014.0,0.01545226]
[1745292727931,0.22623141,88016.0,88014.0,0.01445226]
[1745292728121,0.01136195,88013.0,88010.0,0.31095796]
[1745292728296,0.01136195,88013.0,88010.0,0.31109523]
[1745292728711,0.22724173,88012.0,88010.0,0.31109523]
[1745292728893,0.22724173,88012.0,88010.0,0.3236166]
[1745292729444,0.22724173,88012.0,88010.0,0.3246166]
[1745292729654,0.22724173,88012.0,88010.0,0.3256166]
[1745292729838,0.22724173,88012.0,88010.0,0.3236166]
[1745292729990,0.01136195,88013.0,88010.0,0.3236166]
[1745292730191,0.01136195,88013.0,88010.0,0.3246166]
[1745292730632,0.01136195,88013.0,88010.0,0.01365864]
[1745292731062,0.01136195,88013.0,88010.0,0.01265864]
[1745292731691,0.01136195,88013.0,88010.0,0.01365864]
[1745292731913,0.01136195,88013.0,88010.0,0.01465864]
[1745292732094,0.01136195,88013.0,88010.0,0.01365864]
[1745292732449,0.01136195,88013.0,88010.0,0.01465864]
[1745292732450,0.23860321,88013.0,88010.0,0.01465864]
[1745292733783,0.22724432,88011.0,88010.0,0.01465864]
[1745292734340,0.22724948,88009.0,88008.0,0.1]
[1745292734505,0.22724948,88009.0,88008.0,0.10004577]
[1745292735060,0.22624948,88009.0,88008.0,0.10004577]
[1745292735303,0.22624948,88009.0,88008.0,0.1121324]
[1745292735739,0.22624948,88009.0,88008.0,0.1131324]
[1745292735940,0.22624948,88009.0,88008.0,0.06257557]
[1745292737633,0.2386228,88005.0,88000.0,0.43992]
[1745292737842,0.22726497,88003.0,88000.0,0.57713419]
[1745292738067,0.23862821,88003.0,88001.0,0.11375594]
[1745292738299,0.22727013,88002.0,88000.0,0.45201462]
[1745292738901,0.22727013,88002.0,88000.0,0.35209462]
[1745292739332,0.22727013,88002.0,88000.0,0.35309462]
[1745292740370,0.22727013,88002.0,88000.0,0.01409462]
[1745292740825,0.22727013,88002.0,88000.0,0.01309462]
[1745292741232,0.22727013,88002.0,88000.0,0.00105204]
[1745292742292,0.22827013,88002.0,88000.0,0.00105204]
[1745292743133,0.22827013,88002.0,88000.0,5.204e-05]
[1745292743318,0.22927013,88002.0,88000.0,5.204e-05]
[1745292743723,0.22827013,88002.0,88000.0,5.204e-05]
[1745292744024,0.16145594,88001.0,88000.0,5.204e-05]
[1745292746279,0.0477,88001.0,88000.0,5.204e-05]
[1745292746699,0.22727013,88002.0,88000.0,5.204e-05]
[1745292746900,0.002,88001.0,88000.0,5.204e-05]
[1745292747018,0.004,88001.0,88000.0,5.204e-05]
[1745292747423,0.002,88001.0,88000.0,5.204e-05]
[1745292748206,0.22727013,88002.0,88000.0,5.204e-05]
[1745292748578,0.001,88001.0,88000.0,5.204e-05]
[1745292748705,0.002,88001.0,88000.0,5.204e-05]
[1745292749807,0.001,88001.0,88000.0,5.204e-05]
[1745292750973,0.002,88001.0,88000.0,5.204e-05]
[1745292753185,0.4095,88001.0,88000.0,5.204e-05]
[1745292754824,0.4095,88001.0,88000.0,0.34005204]
[1745292755005,0.4095,88001.0,88000.0,0.38575204]
[1745292759188,0.002,88001.0,88000.0,0.38575204]
[1745292764726,0.002,88001.0,88000.0,0.58051378]
[1745292764930,3.38,88020.0,88017.0,0.01136144]
[1745292765371,3.38,88020.0,88019.0,0.34]
[1745292766374,3.38,88020.0,88018.0,0.56722418]
[1745292766578,3.38,88020.0,88018.0,0.34]
[1745292766917,0.01136157,88016.0,88011.0,0.34]
[1745292767284,0.01136157,88016.0,88011.0,0.57860448]
[1745292767759,0.01136169,88015.0,88011.0,0.57860448]
[1745292768820,0.01136157,88016.0,88012.0,0.01136208]
[1745292769720,0.01136169,88015.0,88011.0,0.57860448]
[1745292772465,0.01136221,88011.0,88008.0,0.43988]
[1745292772869,0.23860292,88013.0,88008.0,0.43988]
[1745292773069,0.01136195,88013.0,88008.0,0.667132]
[1745292773404,0.01136195,88013.0,88009.0,0.01136247]
[1745292774270,0.01136195,88013.0,88009.0,0.2386102]
[1745292774572,0.01136195,88013.0,88008.0,0.4512426]
[1745292774778,0.01136195,88013.0,88008.0,0.1112426]
[1745292774977,0.01136195,88013.0,88011.0,0.34]
[1745292775993,0.01136195,88013.0,88009.0,0.35136247]
[1745292777100,0.01136182,88014.0,88009.0,0.01136247]
[1745292778155,0.01136195,88013.0,88009.0,0.01136247]
[1745292778275,0.01136195,88013.0,88011.0,0.34]
[1745292778475,0.01136182,88014.0,88011.0,0.34]
[1745292783766,0.01136195,88013.0,88009.0,0.34]
[1745292783983,0.01136195,88013.0,88009.0,0.57860984]
[1745292784385,0.01136131,88018.0,88013.0,0.23859995]
[1745292784624,0.01136144,88017.0,88013.0,0.23859995]
[1745292784844,0.01136157,88016.0,88012.0,0.01136208]
[1745292785473,0.01136157,88016.0,88011.0,0.23860653]
[1745292785949,0.23859587,88015.0,88011.0,0.22724432]
[1745292786174,0.01136195,88013.0,88009.0,0.22724909]
[1745292786387,0.23859587,88015.0,88010.0,0.01136234]
[1745292786590,0.01136182,88014.0,88010.0,0.01136234]
[1745292787252,0.01136182,88014.0,88010.0,0.23860711]
[1745292787422,0.01136182,88014.0,88011.0,0.34]
[1745292789450,0.01136182,88014.0,88009.0,0.01136247]
[1745292790274,0.01136195,88013.0,88009.0,0.01136247]
[1745292790476,0.01136195,88013.0,88010.0,0.34]
[1745292791051,0.01136182,88014.0,88010.0,0.34]
[1745292791457,0.01136182,88014.0,88010.0,0.35136234]
[1745292792194,0.01136182,88014.0,88010.0,0.34]
[1745292792540,0.01136182,88014.0,88009.0,0.23860987]
[1745292792749,0.01136157,88016.0,88011.0,0.01136221]
[1745292793169,0.23859568,88015.0,88010.0,0.23860924]
[1745292793431,0.01136195,88013.0,88010.0,0.01136234]
[1745292793633,0.01136195,88013.0,88009.0,0.01136247]
[1745292796351,0.01136195,88013.0,88009.0,0.23860996]
[1745292796769,3.38,88020.0,88019.0,0.22722366]
[1745292796975,3.37685664,88020.0,88019.0,0.22722366]
[1745292797127,3.37685664,88020.0,88019.0,0.27232366]
[1745292797975,3.37785664,88020.0,88019.0,0.61232366]
[1745292799752,3.37885664,88020.0,88019.0,0.61232366]
[1745292803290,3.37885664,88020.0,88019.0,0.7260796]
[1745292803498,3.37885664,88020.0,88019.0,0.78862045]
[1745292803696,1.37959157,88020.0,88019.0,0.78962045]
[1745292803927,0.40574569,88020.0,88019.0,0.78962045]
[1745292804143,0.40234062,88020.0,88019.0,0.78962045]
[1745292804298,0.39666809,88020.0,88019.0,0.78962045]
[1745292804493,0.33891645,88020.0,88019.0,0.78962045]
[1745292804704,0.33190645,88020.0,88019.0,0.78962045]
[1745292804898,0.33190645,88020.0,88019.0,0.79762045]
[1745292805103,0.2751642,88020.0,88019.0,0.79762045]
[1745292805298,0.21842195,88020.0,88019.0,0.79362045]
[1745292805707,0.1616797,88020.0,88019.0,0.79762045]
[1745292805866,0.10493745,88020.0,88019.0,0.79762045]
[1745292806311,0.0481952,88020.0,88019.0,0.79762045]
[1745292806586,0.0004229,88037.0,88036.0,0.56717979]
[1745292806833,0.0004229,88037.0,88036.0,0.83043573]
[1745292807694,0.0004229,88037.0,88036.0,0.83243573]
[1745292807917,0.00048006,88037.0,88036.0,0.89427658]
[1745292808123,0.00048006,88037.0,88036.0,0.89627658]
[1745292809708,0.00048006,88037.0,88036.0,0.90481003]
[1745292828911,0.00048006,88037.0,88036.0,0.65489777]
[1745292829311,0.00048006,88037.0,88036.0,0.88207756]
[1745292830321,0.00048006,88037.0,88036.0,0.83477756]
[1745292835644,0.00048006,88037.0,88036.0,0.73497756]
[1745292835874,0.00048006,88037.0,88036.0,0.83473756]
[1745292839049,0.0004229,88051.0,88044.0,0.56715914]
[1745292839261,0.0004229,88051.0,88044.0,0.69545593]
[1745292839795,0.23889875,88060.0,88044.0,0.69545593]
[1745292839796,2.576e-05,88060.0,88059.0,0.5816613]
[1745292840027,0.00048351,88060.0,88059.0,0.85197724]
[1745292840239,0.0474,88074.0,88068.0,0.58163809]
[1745292840463,0.0474,88083.0,88072.0,0.58162777]
[1745292840668,0.0474,88083.0,88072.0,0.69538371]
[1745292840669,0.00050587,88073.0,88072.0,0.69538371]
[1745292841909,0.0474,88095.0,88072.0,0.69538371]
[1745292842124,0.00152477,88077.0,88076.0,0.58161746]
[1745292842334,0.00152477,88077.0,88076.0,0.6953734]
[1745292847719,0.05875138,88095.0,88083.0,0.58159941]
[1745292847918,0.05875138,88095.0,88083.0,0.79507535]
[1745292849300,0.28578017,88095.0,88083.0,0.79507535]
[1745292849501,0.01135163,88093.0,88083.0,0.79507535]
[1745292850674,0.01135176,88092.0,88083.0,0.79507535]
[1745292850791,0.01135176,88092.0,88083.0,0.80357325]
[1745292853212,0.01135202,88090.0,88083.0,0.80357325]
[1745292854130,0.0497,88088.0,88070.0,0.22239107]
[1745292854347,0.22708435,88073.0,88064.0,0.01135537]
[1745292854553,0.22708435,88073.0,88065.0,0.09972]
[1745292854554,0.22709724,88068.0,88065.0,0.09972]
[1745292854751,0.22709724,88068.0,88067.0,0.34]
[1745292854977,0.2271024,88066.0,88065.0,0.09972]
[1745292855377,0.01135537,88064.0,88060.0,0.22239107]
[1745292855599,0.01135537,88064.0,88061.0,0.09972]
[1745292855924,0.22711013,88063.0,88061.0,0.11421928]
[1745292856638,0.22711013,88063.0,88061.0,0.01449928]
[1745292857045,0.22711529,88061.0,88060.0,8.317e-05]
[1745292857467,0.22711529,88061.0,88060.0,0.01457086]
[1745292857607,0.01135602,88059.0,88055.0,0.09972]
[1745292858653,0.01135615,88058.0,88055.0,0.09972]
[1745292859446,0.01135602,88059.0,88055.0,0.1139213]
[1745292859657,0.01135602,88059.0,88056.0,0.34]
[1745292859931,0.23847702,88059.0,88056.0,0.34]
[1745292860636,0.01135602,88059.0,88056.0,0.34]
[1745292861245,0.01135512,88066.0,88058.0,0.34]
[1745292861421,0.0113555,88063.0,88058.0,0.45375594]
[1745292861876,0.01135563,88062.0,88058.0,0.45375594]
[1745292862287,0.01135576,88061.0,88058.0,0.45375594]
[1745292864725,0.22711787,88060.0,88058.0,0.45375594]
[1745292864943,0.01135576,88061.0,88058.0,0.45375594]
[1745292865981,0.22711787,88060.0,88058.0,0.45375594]
[1745292867396,0.01135576,88061.0,88058.0,0.45375594]
[1745292871077,0.23847344,88061.0,88058.0,0.45375594]
[1745292872089,0.23847344,88061.0,88059.0,0.09972]
[1745292882742,0.22712045,88059.0,88058.0,0.45375594]
[1745292882985,0.22712045,88059.0,88058.0,0.55347594]
[1745292884174,0.0113555,88063.0,88058.0,0.56483209]
[1745292884383,0.2386031,88064.0,88061.0,0.01135576]
[1745292884384,0.00013714,88064.0,88061.0,0.01135576]
[1745292884618,0.0113555,88063.0,88060.0,0.34]
[1745292885030,0.23846781,88063.0,88060.0,0.34]
[1745292885222,0.23846781,88063.0,88058.0,0.22483209]
[1745292885372,0.01135563,88062.0,88058.0,0.22483209]
[1745292885575,0.00013714,88064.0,88059.0,0.01135602]
[1745292885797,0.00013714,88064.0,88062.0,0.24165281]
[1745292886174,0.00013714,88064.0,88063.0,0.18726758]
[1745292886602,0.00013714,88064.0,88063.0,0.28546758]
[1745292886816,0.00013714,88064.0,88063.0,0.28319679]
[1745292887263,0.01135241,88087.0,88080.0,0.01135331]
[1745292887264,0.01135267,88085.0,88080.0,0.01135331]
[1745292887472,0.01135267,88085.0,88080.0,0.35217321]
[1745292887808,0.01144094,88085.0,88080.0,0.35217321]
[1745292888004,0.01144094,88085.0,88083.0,0.01454085]
[1745292888005,8.827e-05,88085.0,88083.0,0.01454085]
[1745292888206,8.827e-05,88085.0,88084.0,0.35762318]
[1745292888412,8.827e-05,88085.0,88084.0,0.35535278]
[1745292888627,8.827e-05,88085.0,88084.0,0.69535278]
[1745292890298,0.00108827,88085.0,88084.0,0.69535278]
[1745292890821,8.827e-05,88085.0,88084.0,0.69535278]
[1745292891329,0.00108827,88085.0,88084.0,0.69535278]
[1745292892828,0.00108827,88085.0,88084.0,0.75205278]
[1745292893052,0.0113497,88108.0,88102.0,0.35135048]
[1745292893310,0.01134983,88107.0,88103.0,0.09968]
[1745292893509,0.0113497,88108.0,88104.0,0.34]
[1745292893843,0.0113497,88108.0,88104.0,0.35412094]
[1745292894042,0.01134957,88109.0,88105.0,0.22700187]
[1745292894244,0.01143746,88112.0,88106.0,0.56699718]
[1745292894645,0.01134944,88110.0,88106.0,0.56699718]
[1745292894902,0.01134944,88110.0,88107.0,0.34]
[1745292895683,0.22699156,88109.0,88107.0,0.34]
[1745292895901,0.22699156,88109.0,88104.0,0.35412094]
[1745292896123,0.23834113,88109.0,88106.0,0.34]
[1745292896268,0.01134957,88109.0,88106.0,0.34]
[1745292897233,0.01134957,88109.0,88104.0,0.5924581]
[1745292898084,0.01234957,88109.0,88104.0,0.5924581]
[1745292898279,0.01134957,88109.0,88104.0,0.5924581]
[1745292899102,0.01134957,88109.0,88106.0,0.34]
[1745292899329,0.01234957,88109.0,88106.0,0.34]
[1745292899668,0.001,88109.0,88106.0,0.35134996]
[1745292900300,0.001,88109.0,88107.0,0.22699671]
[1745292900712,0.01143746,88112.0,88107.0,0.23834654]
[1745292900863,0.001,88109.0,88107.0,0.22699671]
[1745292901066,0.002,88109.0,88107.0,0.22699671]
[1745292901266,0.001,88109.0,88107.0,0.22699671]
[1745292901471,0.002,88109.0,88107.0,0.22699671]
[1745292901673,0.01234957,88109.0,88106.0,0.34]
[1745292902027,0.01234957,88109.0,88104.0,0.02545592]
[1745292902028,0.0919,88105.0,88104.0,0.0141057]
[1745292902414,0.22703537,88092.0,88091.0,0.09964]
[1745292903374,0.01135112,88097.0,88092.0,0.01135176]
[1745292903375,0.2383739,88097.0,88092.0,0.01135176]
[1745292903580,0.2383739,88097.0,88092.0,0.35135176]
[1745292903811,0.01135125,88096.0,88092.0,0.5783852]
[1745292904048,0.23837902,88095.0,88092.0,0.34]
[1745292904825,0.23837902,88095.0,88092.0,0.35135176]
[1745292904826,0.01135138,88095.0,88092.0,0.35135176]
[1745292905695,0.01135125,88096.0,88092.0,0.59252718]
[1745292905898,0.22703196,88094.0,88092.0,0.35514224]
[1745292906456,0.01135138,88095.0,88092.0,0.35514224]
[1745292906686,0.23838101,88095.0,88092.0,0.35514224]
[1745292907043,0.23838101,88095.0,88092.0,0.35414224]
[1745292908721,0.01135138,88095.0,88092.0,0.59252826]
[1745292909614,0.23837055,88099.0,88094.0,0.34]
[1745292909815,0.01135099,88098.0,88094.0,0.35135151]
[1745292909979,0.01135112,88097.0,88094.0,0.34]
[1745292910989,0.23838085,88095.0,88092.0,0.01414224]
[1745292911216,0.23838097,88095.0,88092.0,0.01414224]
[1745292911426,0.01135151,88094.0,88091.0,0.45099189]
[1745292911779,0.01135138,88095.0,88091.0,0.67806778]
[1745292911943,0.01135125,88096.0,88092.0,0.01135176]
[1745292913892,0.01135125,88096.0,88092.0,0.02498861]
[1745292914091,0.01135125,88096.0,88092.0,0.01135176]
[1745292914666,0.01135125,88096.0,88091.0,0.09968]
[1745292914873,0.23837801,88096.0,88091.0,0.32671589]
[1745292915175,0.01135138,88095.0,88091.0,0.32671589]
[1745292915587,0.01135125,88096.0,88091.0,0.32671589]
[1745292915785,0.01135099,88098.0,88094.0,0.34]
[1745292915989,0.01135112,88097.0,88094.0,0.34]
[1745292917161,0.23837563,88097.0,88094.0,0.34]
[1745292917932,0.22702693,88096.0,88094.0,0.34]
[1745292918288,0.23837563,88097.0,88094.0,0.34]
[1745292919377,0.22702761,88096.0,88094.0,0.34]
[1745292922808,0.23838131,88095.0,88092.0,0.01414818]
[1745292923189,0.23838131,88095.0,88091.0,0.11099189]
[1745292924001,0.01135138,88095.0,88092.0,0.01135176]
[1745292925388,0.01135138,88095.0,88092.0,0.02540986]
[1745292925589,0.01135138,88095.0,88092.0,0.01135176]
[1745292925790,0.23837444,88097.0,88093.0,0.34]
[1745292925994,0.01135125,88096.0,88093.0,0.34]
[1745292926761,0.23837883,88096.0,88093.0,0.34]
[1745292927824,0.01135099,88098.0,88094.0,0.01135151]
[1745292928036,0.22699115,88110.0,88099.0,0.34]
[1745292928230,0.01135009,88105.0,88101.0,0.56701017]
[1745292928440,0.01135009,88105.0,88101.0,0.34]
[1745292928645,0.23835466,88104.0,88101.0,0.34]
[1745292929063,0.01135073,88100.0,88097.0,0.01135112]
[1745292929394,0.01135048,88102.0,88098.0,0.35135099]
[1745292929600,0.01135048,88102.0,88098.0,0.57836907]
[1745292929979,0.0113506,88101.0,88098.0,0.35135099]
[1745292930396,0.0113506,88101.0,88098.0,0.34]
[1745292930553,0.0113506,88101.0,88097.0,0.01135112]
[1745292930754,0.01135073,88100.0,88097.0,0.01135112]
[1745292930953,0.23836819,88099.0,88096.0,0.34]
[1745292931165,0.22702248,88097.0,88096.0,0.34]
[1745292931666,0.22702248,88097.0,88096.0,0.34512177]
[1745292932701,0.0113506,88101.0,88098.0,0.35135099]
[1745292932912,0.0113506,88101.0,88099.0,0.00495272]
[1745292933077,0.01135048,88102.0,88098.0,0.34]
[1745292933254,0.01135048,88102.0,88099.0,0.00494565]
[1745292933454,0.0004,88114.0,88110.0,0.34]
[1745292933681,0.22740441,88113.0,88110.0,0.34494565]
[1745292933877,0.23875347,88113.0,88110.0,0.34494565]
[1745292934918,0.00108827,88112.0,88110.0,0.34494565]
[1745292935117,0.00108827,88112.0,88110.0,0.5719333]
[1745292935281,8.827e-05,88112.0,88110.0,0.5719333]
[1745292935712,0.00108827,88112.0,88110.0,0.5719333]
[1745292935906,0.00208827,88112.0,88110.0,0.5719333]
[1745292936245,0.00108827,88112.0,88110.0,0.5719333]
[1745292936447,0.00208827,88112.0,88110.0,0.5719333]
[1745292936777,0.00208827,88112.0,88110.0,0.34494565]
[1745292938235,0.22907219,88112.0,88110.0,0.34494565]
[1745292941156,0.00208827,88112.0,88110.0,0.34494565]
[1745292941317,0.00208827,88112.0,88110.0,0.57193224]
[1745292942322,0.00208827,88112.0,88110.0,0.68568818]
[1745292942584,0.00208827,88112.0,88111.0,0.51736636]
[1745292942925,0.00108827,88112.0,88111.0,0.52001193]
[1745292943480,8.827e-05,88112.0,88111.0,0.52001193]
[1745292947669,8.827e-05,88112.0,88111.0,0.55827108]
[1745292949288,8.827e-05,88112.0,88111.0,0.00491514]
[1745292949663,0.22698641,88111.0,88110.0,0.09956]
[1745292951135,8.827e-05,88112.0,88111.0,0.34]
[1745292953248,0.00108827,88112.0,88111.0,0.34]
[1745292955313,0.22698641,88111.0,88110.0,0.09956]
[1745292955599,0.22699414,88108.0,88107.0,0.34]
[1745292955760,0.22699414,88108.0,88107.0,0.43956]
[1745292956389,0.23834099,88110.0,88107.0,0.43956]
[1745292956993,0.22699414,88108.0,88107.0,0.09956]
[1745292957626,0.01134957,88109.0,88107.0,0.09956]
[1745292957834,0.23834301,88109.0,88107.0,0.09956]
[1745292958160,0.23834352,88109.0,88107.0,0.09956]
[1745292958300,0.01134957,88109.0,88107.0,0.09956]
[1745292958651,8.827e-05,88112.0,88111.0,0.34]
[1745292958814,8.827e-05,88112.0,88111.0,0.45375594]
[1745292959027,8.827e-05,88112.0,88111.0,0.34]
[1745292959598,0.22699156,88109.0,88107.0,0.09956]
[1745292960398,0.01134932,88111.0,88108.0,0.3513497]
[1745292960573,0.01134932,88111.0,88109.0,0.00484128]
[1745292961191,0.23833826,88111.0,88109.0,0.00484128]
[1745292961881,0.01143746,88112.0,88109.0,0.00484128]
[1745292962310,0.23842305,88112.0,88109.0,0.00484128]
[1745292962864,0.22698871,88111.0,88109.0,0.00484128]
[1745292966163,0.23842305,88112.0,88109.0,0.00484128]
[1745292966374,0.22698857,88111.0,88109.0,0.00484128]
[1745292967512,8.827e-05,88112.0,88111.0,0.34]
[1745292967661,8.827e-05,88112.0,88111.0,0.45375594]
[1745292967870,8.827e-05,88112.0,88111.0,0.5058766]
[1745292968827,0.00108827,88112.0,88111.0,0.74740386]
[1745292970446,8.827e-05,88112.0,88111.0,0.74740386]
[1745292973834,3.001e-05,88117.0,88114.0,0.58151953]
[1745292974036,3.001e-05,88117.0,88116.0,0.58151438]
[1745292974236,0.01134713,88128.0,88119.0,0.58150665]
[1745292974552,0.23829886,88125.0,88119.0,0.34]
[1745292974767,0.27688563,88120.0,88119.0,0.34480103]
[1745292974971,0.32668563,88120.0,88119.0,0.34480103]
[1745292975123,0.32668563,88120.0,88119.0,0.00480103]
[1745292975124,0.32768563,88120.0,88119.0,0.00480103]
[1745292975327,0.44144157,88120.0,88119.0,0.00480103]
[1745292975505,0.01135112,88097.0,88096.0,0.09956]
[1745292975704,0.01135112,88097.0,88094.0,0.01135151]
[1745292976045,0.23837074,88099.0,88095.0,0.09956]
[1745292976244,0.01135099,88098.0,88095.0,0.10435255]
[1745292976683,0.01135099,88098.0,88096.0,0.001]
[1745292977223,0.01135099,88098.0,88097.0,0.00479255]
[1745292978211,0.22702248,88097.0,88095.0,0.10056]
[1745292978408,0.22702248,88097.0,88096.0,0.00479255]
[1745292979109,0.01135035,88103.0,88099.0,0.01135086]
[1745292979261,0.23836277,88101.0,88098.0,0.34]
[1745292979475,0.22701696,88100.0,88098.0,0.34]
[1745292979680,0.23836277,88101.0,88098.0,0.34]
[1745292979909,0.23836377,88101.0,88098.0,0.34]
[1745292981249,0.0113506,88101.0,88098.0,0.34]
[1745292982456,0.23833264,88113.0,88109.0,0.34]
[1745292982816,0.22698832,88111.0,88109.0,0.34]
[1745292983830,0.23833547,88112.0,88108.0,0.34]
[1745292984246,0.01234932,88111.0,88108.0,0.34]
[1745292984547,0.22698899,88110.0,88108.0,0.34]
[1745292984892,0.01134957,88109.0,88105.0,0.35135009]
[1745292986355,0.01234957,88109.0,88105.0,0.35135009]
[1745292986558,0.22699671,88107.0,88104.0,0.34]
[1745292986822,0.23835072,88106.0,88104.0,0.34]
[1745292987430,0.01334957,88109.0,88105.0,0.01135009]
[1745292987628,0.01134983,88107.0,88102.0,0.01135048]
[1745292987862,0.001,88106.0,88104.0,0.01135022]
[1745292988059,0.001,88106.0,88104.0,0.23835433]
[1745292988284,0.001,88106.0,88104.0,0.01135022]
[1745292988994,0.001,88106.0,88103.0,0.01135035]